[Event "Late-Titled-Tuesday-Blitz-September-26-2023"]
[Site "Chess.com"]
[Date "2023.09.26"]
[Round "4"]
[White "ShiroglanTalibov"]
[Black "dcremisi"]
[Result "1-0"]
[WhiteElo "2844"]
[BlackElo "2540"]
[TimeControl "180+1"]
[EndTime "14:39:20 PDT"]
[Termination "ShiroglanTalibov won by resignation"]

1. d4 {[%clk 0:03:00.9]} 1... d5 {[%clk 0:02:58.5]} 2. Nf3 {[%clk 0:02:58.3]}
2... Nf6 {[%clk 0:02:58.5]} 3. c4 {[%clk 0:02:56.9]} 3... e6 {[%clk 0:02:58.4]}
4. Nc3 {[%clk 0:02:56.4]} 4... c6 {[%clk 0:02:58.7]} 5. Bg5 {[%clk 0:02:54.6]}
5... Nbd7 {[%clk 0:02:57.9]} 6. e3 {[%clk 0:02:52.6]} 6... Qa5 {[%clk
0:02:57.6]} 7. Nd2 {[%clk 0:02:50.1]} 7... Be7 {[%clk 0:02:57]} 8. a3 {[%clk
0:02:45.2]} 8... h6 {[%clk 0:02:55.7]} 9. Bh4 {[%clk 0:02:44.2]} 9... Qd8 {[%clk
0:02:53.8]} 10. c5 {[%clk 0:02:34.6]} 10... b6 {[%clk 0:02:52]} 11. b4 {[%clk
0:02:33.6]} 11... a5 {[%clk 0:02:46]} 12. f4 {[%clk 0:02:30]} 12... Bb7 {[%clk
0:02:43.7]} 13. Bd3 {[%clk 0:02:28.3]} 13... axb4 {[%clk 0:02:42.1]} 14. axb4
{[%clk 0:02:27.5]} 14... bxc5 {[%clk 0:02:42.4]} 15. bxc5 {[%clk 0:02:26.2]}
15... Rxa1 {[%clk 0:02:41.2]} 16. Qxa1 {[%clk 0:02:27.1]} 16... O-O {[%clk
0:02:38.3]} 17. O-O {[%clk 0:02:26.2]} 17... Qa8 {[%clk 0:02:37]} 18. Nb3 {[%clk
0:02:18.9]} 18... Qxa1 {[%clk 0:02:36.3]} 19. Rxa1 {[%clk 0:02:17.9]} 19... Ra8
{[%clk 0:02:36.1]} 20. Rxa8+ {[%clk 0:02:17.7]} 20... Bxa8 {[%clk 0:02:36.2]}
21. Ba6 {[%clk 0:02:18.2]} 21... Kf8 {[%clk 0:02:33.3]} 22. Na5 {[%clk
0:02:15.8]} 22... Nb8 {[%clk 0:02:26.1]} 23. Bb7 {[%clk 0:02:03.6]} 23... Bxb7
{[%clk 0:02:25.5]} 24. Nxb7 {[%clk 0:02:04.5]} 24... Ke8 {[%clk 0:02:24.1]} 25.
Na4 {[%clk 0:02:04]} 25... Ng4 {[%clk 0:02:05.1]} 26. Bf2 {[%clk 0:02:00]} 26...
Nxf2 {[%clk 0:02:03.9]} 27. Kxf2 {[%clk 0:02:00.9]} 27... Kd7 {[%clk 0:01:58.2]}
28. Na5 {[%clk 0:01:55.8]} 28... Kc7 {[%clk 0:01:57.9]} 29. Kf3 {[%clk
0:01:54.1]} 29... Nd7 {[%clk 0:01:57.5]} 30. g4 {[%clk 0:01:53]} 30... f5 {[%clk
0:01:52]} 31. h3 {[%clk 0:01:47.9]} 31... Nf6 {[%clk 0:01:46.5]} 32. Nc3 {[%clk
0:01:38.2]} 32... g6 {[%clk 0:01:46.3]} 33. Nb3 {[%clk 0:01:36.5]} 33... h5
{[%clk 0:01:46]} 34. g5 {[%clk 0:01:35.6]} 34... Ne4 {[%clk 0:01:45.2]} 35. Nb1
{[%clk 0:01:24.2]} 35... Bd8 {[%clk 0:01:44.3]} 36. Nc1 {[%clk 0:01:24.4]} 36...
Kd7 {[%clk 0:01:44.4]} 37. Nd3 {[%clk 0:01:24.7]} 37... Bc7 {[%clk 0:01:43]} 38.
h4 {[%clk 0:01:24.5]} 38... Ke8 {[%clk 0:01:38.1]} 39. Na3 {[%clk 0:01:22.4]}
39... Nd2+ {[%clk 0:01:37.7]} 40. Ke2 {[%clk 0:01:22.1]} 40... Ne4 {[%clk
0:01:37.9]} 41. Nc2 {[%clk 0:01:21.8]} 41... Nc3+ {[%clk 0:01:16.4]} 42. Kf3
{[%clk 0:01:21.6]} 42... Nb5 {[%clk 0:01:16.4]} 43. Ncb4 {[%clk 0:01:20.7]}
43... Kd7 {[%clk 0:01:14.5]} 44. Na6 {[%clk 0:01:15.7]} 44... Ba5 {[%clk
0:00:53.6]} 45. Ne5+ {[%clk 0:01:14.1]} 45... Ke8 {[%clk 0:00:53.6]} 46. Nxc6
{[%clk 0:01:13.8]} 46... Be1 {[%clk 0:00:53.3]} 47. Ne5 {[%clk 0:01:14.1]} 47...
Bxh4 {[%clk 0:00:50.6]} 48. Nxg6 {[%clk 0:01:11.1]} 48... Be1 {[%clk 0:00:50.5]}
49. c6 {[%clk 0:01:00.2]} 49... Ba5 {[%clk 0:00:36.8]} 50. Kg3 {[%clk
0:00:50.5]} 50... Be1+ {[%clk 0:00:36.1]} 51. Kf3 {[%clk 0:00:46.6]} 51... h4
{[%clk 0:00:32.9]} 52. c7 {[%clk 0:00:35.2]} 52... Na7 {[%clk 0:00:15.4]} 53.
Nc5 {[%clk 0:00:27.6]} 53... h3 {[%clk 0:00:09.7]} 54. Nxe6 {[%clk 0:00:27.1]}
54... h2 {[%clk 0:00:10]} 55. Kg2 {[%clk 0:00:26.7]} 55... Bf2 {[%clk
0:00:08.6]} 56. Kxh2 {[%clk 0:00:25.7]} 56... Bxe3 {[%clk 0:00:08.8]} 57. Kg3
{[%clk 0:00:18.8]} 57... Kd7 {[%clk 0:00:09.1]} 58. Ngf8+ {[%clk 0:00:17.6]}
58... Ke7 {[%clk 0:00:09]} 59. Kf3 {[%clk 0:00:18]} 59... Bc1 {[%clk 0:00:08.3]}
60. g6 {[%clk 0:00:18]} 60... Bb2 {[%clk 0:00:04.2]} 61. g7 {[%clk 0:00:18.1]}
61... Kf7 {[%clk 0:00:04.6]} 62. Nd7 {[%clk 0:00:17.7]} 62... Bxd4 {[%clk
0:00:04.4]} 63. Nxd4 {[%clk 0:00:16.4]} 63... Kxg7 {[%clk 0:00:04.8]} 64. Nb6
{[%clk 0:00:16.9]} 64... Kf7 {[%clk 0:00:04.6]} 65. Nb5 {[%clk 0:00:17.4]} 65...
Nc8 {[%clk 0:00:05.5]} 66. Nxc8 {[%clk 0:00:17.5]} 1-0

[Event "Late-Titled-Tuesday-Blitz-September-26-2023"]
[Site "Chess.com"]
[Date "2023.09.26"]
[Round "4"]
[White "Fan_Of_Chucky"]
[Black "filipluczak05"]
[Result "1-0"]
[WhiteElo "2502"]
[BlackElo "2650"]
[TimeControl "180+1"]
[EndTime "14:39:22 PDT"]
[Termination "Fan_Of_Chucky won by resignation"]

1. d4 {[%clk 0:02:53.9]} 1... g6 {[%clk 0:02:56.9]} 2. c4 {[%clk 0:02:53.4]}
2... Bg7 {[%clk 0:02:56.9]} 3. Nc3 {[%clk 0:02:53.4]} 3... d6 {[%clk 0:02:57.4]}
4. e4 {[%clk 0:02:53.7]} 4... e5 {[%clk 0:02:58]} 5. d5 {[%clk 0:02:51.5]} 5...
f5 {[%clk 0:02:56.4]} 6. exf5 {[%clk 0:02:50.8]} 6... gxf5 {[%clk 0:02:56.5]} 7.
Qh5+ {[%clk 0:02:48.5]} 7... Kf8 {[%clk 0:02:56.8]} 8. Bg5 {[%clk 0:02:47.6]}
8... Nf6 {[%clk 0:02:54.4]} 9. Qh4 {[%clk 0:02:48.2]} 9... h6 {[%clk 0:02:53.7]}
10. Bd2 {[%clk 0:02:43.8]} 10... Na6 {[%clk 0:02:53.2]} 11. O-O-O {[%clk
0:02:33.8]} 11... Bd7 {[%clk 0:02:51]} 12. f4 {[%clk 0:02:09.7]} 12... e4 {[%clk
0:02:47.1]} 13. h3 {[%clk 0:02:09.5]} 13... Nc5 {[%clk 0:02:42.9]} 14. Be3
{[%clk 0:02:03.4]} 14... b6 {[%clk 0:02:38.5]} 15. Be2 {[%clk 0:01:56.1]} 15...
a5 {[%clk 0:02:31.1]} 16. g4 {[%clk 0:01:52.4]} 16... Nd3+ {[%clk 0:02:02.4]}
17. Bxd3 {[%clk 0:01:47.9]} 17... exd3 {[%clk 0:02:02.2]} 18. Rxd3 {[%clk
0:01:23.7]} 18... fxg4 {[%clk 0:02:00.6]} 19. hxg4 {[%clk 0:01:21.9]} 19... Nxg4
{[%clk 0:01:59.3]} 20. Qg3 {[%clk 0:01:18.8]} 20... Qf6 {[%clk 0:01:43.5]} 21.
Bd4 {[%clk 0:01:11.9]} 21... Qf5 {[%clk 0:01:16.8]} 22. Bxg7+ {[%clk 0:01:12.8]}
22... Kxg7 {[%clk 0:01:17.1]} 23. Nge2 {[%clk 0:01:08.9]} 23... h5 {[%clk
0:01:09.4]} 24. Nd4 {[%clk 0:00:56.8]} 24... Qf6 {[%clk 0:01:08]} 25. Ne4 {[%clk
0:00:52.4]} 25... Qg6 {[%clk 0:01:04.6]} 26. Ng5 {[%clk 0:00:51.9]} 26... Rae8
{[%clk 0:00:52.9]} 27. Nge6+ {[%clk 0:00:48.6]} 27... Bxe6 {[%clk 0:00:51.4]}
28. Nxe6+ {[%clk 0:00:49.5]} 28... Rxe6 {[%clk 0:00:48.8]} 29. dxe6 {[%clk
0:00:49.1]} 29... Qxe6 {[%clk 0:00:49.7]} 30. Rd5 {[%clk 0:00:41.5]} 30... Qe4
{[%clk 0:00:40.1]} 31. Rdxh5 {[%clk 0:00:34.8]} 31... Qxc4+ {[%clk 0:00:30]} 32.
Kb1 {[%clk 0:00:32.3]} 32... Qe4+ {[%clk 0:00:30]} 33. Kc1 {[%clk 0:00:25.8]}
33... Qxh1+ {[%clk 0:00:05.9]} 34. Rxh1 {[%clk 0:00:24.8]} 34... Rxh1+ {[%clk
0:00:06.8]} 35. Kd2 {[%clk 0:00:17.7]} 35... Rh2+ {[%clk 0:00:07.2]} 36. Kc3
{[%clk 0:00:13.8]} 36... Rh6 {[%clk 0:00:04]} 37. Qxg4+ {[%clk 0:00:13.9]} 37...
Rg6 {[%clk 0:00:04.6]} 38. Qf3 {[%clk 0:00:14.5]} 38... Kf6 {[%clk 0:00:04.5]}
39. Qc6 {[%clk 0:00:14.3]} 39... Rg7 {[%clk 0:00:05.1]} 40. Qd5 {[%clk
0:00:13.1]} 40... Rf7 {[%clk 0:00:04.8]} 41. f5 {[%clk 0:00:13.1]} 41... Re7
{[%clk 0:00:04.6]} 42. b4 {[%clk 0:00:08.7]} 42... axb4+ {[%clk 0:00:04.3]} 43.
Kxb4 {[%clk 0:00:09.6]} 43... Re5 {[%clk 0:00:04.8]} 44. Qc6 {[%clk 0:00:08.8]}
44... Rc5 {[%clk 0:00:04.8]} 45. Qd7 {[%clk 0:00:09.3]} 45... Kg5 {[%clk
0:00:04.4]} 46. Qe6 {[%clk 0:00:06.4]} 46... Rxf5 {[%clk 0:00:03.9]} 47. Qe7+
{[%clk 0:00:07]} 47... Kf4 {[%clk 0:00:04.2]} 48. Qxc7 {[%clk 0:00:07.9]} 48...
Rf6 {[%clk 0:00:03.8]} 49. Qxb6 {[%clk 0:00:08.1]} 49... Ke5 {[%clk 0:00:04.7]}
50. Qe3+ {[%clk 0:00:08.2]} 50... Kd5 {[%clk 0:00:04.9]} 51. Kb5 {[%clk
0:00:07.5]} 51... Rf5 {[%clk 0:00:04.9]} 52. Qd3+ {[%clk 0:00:07.4]} 52... Ke6+
{[%clk 0:00:05.5]} 53. Kb6 {[%clk 0:00:06.8]} 53... Rc5 {[%clk 0:00:05.8]} 54.
Qe3+ {[%clk 0:00:06.2]} 54... Re5 {[%clk 0:00:06.1]} 55. Qb3+ {[%clk 0:00:05.9]}
55... d5 {[%clk 0:00:06.5]} 56. a4 {[%clk 0:00:06.2]} 56... Kd6 {[%clk
0:00:05.9]} 57. a5 {[%clk 0:00:06.5]} 57... d4 {[%clk 0:00:06.8]} 58. a6 {[%clk
0:00:06.5]} 58... Re3 {[%clk 0:00:06.7]} 59. Qb4+ {[%clk 0:00:06.1]} 59... Kd5
{[%clk 0:00:06.9]} 60. a7 {[%clk 0:00:06.4]} 60... Re8 {[%clk 0:00:07.1]} 61.
Kb7 {[%clk 0:00:06.1]} 61... d3 {[%clk 0:00:07.1]} 62. Qd2 {[%clk 0:00:05.9]}
62... Re7+ {[%clk 0:00:06.3]} 63. Ka6 {[%clk 0:00:06.4]} 63... Re6+ {[%clk
0:00:06.3]} 64. Kb5 {[%clk 0:00:06.9]} 64... Re5 {[%clk 0:00:06.5]} 65. Qxd3+
{[%clk 0:00:07]} 65... Ke6+ {[%clk 0:00:07.4]} 66. Kb6 {[%clk 0:00:07.4]} 66...
Kf6 {[%clk 0:00:07.4]} 67. Qd6+ {[%clk 0:00:07.1]} 67... Re6 {[%clk 0:00:08.3]}
68. Qxe6+ {[%clk 0:00:07.6]} 68... Kxe6 {[%clk 0:00:08.5]} 69. a8=Q {[%clk
0:00:08.5]} 1-0

[Event "Late-Titled-Tuesday-Blitz-September-26-2023"]
[Site "Chess.com"]
[Date "2023.09.26"]
[Round "4"]
[White "ZuraTqebuchava"]
[Black "McCarthyStone"]
[Result "1/2-1/2"]
[WhiteElo "2242"]
[BlackElo "2399"]
[TimeControl "180+1"]
[EndTime "14:39:51 PDT"]
[Termination "Game drawn - insufficient material"]

1. e4 {[%clk 0:03:00.7]} 1... e5 {[%clk 0:02:59.6]} 2. Nf3 {[%clk 0:02:57]} 2...
d6 {[%clk 0:02:59.9]} 3. c3 {[%clk 0:02:53.9]} 3... Nf6 {[%clk 0:02:59.1]} 4. d3
{[%clk 0:02:34.6]} 4... g6 {[%clk 0:02:58.8]} 5. h3 {[%clk 0:02:34.6]} 5... Bg7
{[%clk 0:02:59.4]} 6. Bg5 {[%clk 0:02:34.5]} 6... O-O {[%clk 0:02:58.6]} 7. Bxf6
{[%clk 0:02:32.6]} 7... Qxf6 {[%clk 0:02:58.6]} 8. Be2 {[%clk 0:02:32.4]} 8...
c6 {[%clk 0:02:58.8]} 9. O-O {[%clk 0:02:32]} 9... d5 {[%clk 0:02:59.4]} 10.
Nbd2 {[%clk 0:02:31]} 10... Re8 {[%clk 0:02:57]} 11. Qa4 {[%clk 0:02:25]} 11...
Nd7 {[%clk 0:02:47.1]} 12. Rfe1 {[%clk 0:02:20]} 12... Nc5 {[%clk 0:02:42.2]}
13. Qc2 {[%clk 0:02:19]} 13... Ne6 {[%clk 0:02:41.7]} 14. Bf1 {[%clk 0:01:55]}
14... Nf4 {[%clk 0:02:40.5]} 15. exd5 {[%clk 0:01:42.2]} 15... cxd5 {[%clk
0:02:36.4]} 16. c4 {[%clk 0:01:35.6]} 16... Bf5 {[%clk 0:02:29.9]} 17. cxd5
{[%clk 0:01:30.1]} 17... Nxd5 {[%clk 0:02:29.4]} 18. Ne4 {[%clk 0:01:29]} 18...
Qb6 {[%clk 0:02:19.6]} 19. Qc5 {[%clk 0:01:09.2]} 19... Rad8 {[%clk 0:02:07.1]}
20. Qxb6 {[%clk 0:01:05.6]} 20... Nxb6 {[%clk 0:02:08]} 21. Nc5 {[%clk
0:01:03.9]} 21... Bc8 {[%clk 0:01:43.8]} 22. Rac1 {[%clk 0:00:53.4]} 22... Nd7
{[%clk 0:01:29.9]} 23. Ne4 {[%clk 0:00:52.1]} 23... Nf6 {[%clk 0:01:29.5]} 24.
Rxc8 {[%clk 0:00:40.5]} 24... Rxc8 {[%clk 0:01:19.8]} 25. Nd6 {[%clk 0:00:40.6]}
25... Nd7 {[%clk 0:00:52]} 26. Nxe8 {[%clk 0:00:35.5]} 26... Rxe8 {[%clk
0:00:51.2]} 27. Rc1 {[%clk 0:00:35.9]} 27... Bf8 {[%clk 0:00:39.4]} 28. Rc7
{[%clk 0:00:33.6]} 28... Nc5 {[%clk 0:00:39.4]} 29. b4 {[%clk 0:00:22.7]} 29...
Na6 {[%clk 0:00:19.9]} 30. Rxb7 {[%clk 0:00:21.1]} 30... Nxb4 {[%clk 0:00:20.6]}
31. a4 {[%clk 0:00:17.2]} 31... a6 {[%clk 0:00:17.2]} 32. Ng5 {[%clk 0:00:14.7]}
32... f6 {[%clk 0:00:12.1]} 33. Nxh7 {[%clk 0:00:09.8]} 33... Be7 {[%clk
0:00:04.8]} 34. Nxf6+ {[%clk 0:00:07.6]} 34... Bxf6 {[%clk 0:00:04.8]} 35. Rxb4
{[%clk 0:00:08]} 35... Rd8 {[%clk 0:00:05.2]} 36. Rb6 {[%clk 0:00:07.1]} 36...
Kg7 {[%clk 0:00:04.4]} 37. Rxa6 {[%clk 0:00:07.2]} 37... Rb8 {[%clk 0:00:04.8]}
38. g3 {[%clk 0:00:05.9]} 38... Rb2 {[%clk 0:00:04.8]} 39. Ra7+ {[%clk
0:00:04.8]} 39... Kh6 {[%clk 0:00:04.5]} 40. a5 {[%clk 0:00:04.5]} 40... e4
{[%clk 0:00:04.8]} 41. a6 {[%clk 0:00:02.7]} 41... exd3 {[%clk 0:00:01.8]} 42.
Bxd3 {[%clk 0:00:02.2]} 42... Rxf2 {[%clk 0:00:02.7]} 43. Kxf2 {[%clk
0:00:02.2]} 43... Bd4+ {[%clk 0:00:03.3]} 44. Kf3 {[%clk 0:00:03.1]} 44... Bxa7
{[%clk 0:00:04.2]} 45. Be4 {[%clk 0:00:03.6]} 45... Kg5 {[%clk 0:00:04.8]} 46.
Bd5 {[%clk 0:00:03]} 46... Kf6 {[%clk 0:00:05.5]} 47. Bb7 {[%clk 0:00:03]} 47...
g5 {[%clk 0:00:06]} 48. Kg4 {[%clk 0:00:03]} 48... Kg6 {[%clk 0:00:06.5]} 49. h4
{[%clk 0:00:03.3]} 49... gxh4 {[%clk 0:00:07.1]} 50. gxh4 {[%clk 0:00:04.2]}
50... Kh6 {[%clk 0:00:07.8]} 51. h5 {[%clk 0:00:04.9]} 51... Kg7 {[%clk
0:00:08]} 52. Kg5 {[%clk 0:00:05.2]} 52... Kh8 {[%clk 0:00:08.9]} 53. Kg6 {[%clk
0:00:05.2]} 53... Bb8 {[%clk 0:00:09.6]} 54. h6 {[%clk 0:00:05.2]} 54... Ba7
{[%clk 0:00:10.5]} 55. h7 {[%clk 0:00:03.7]} 55... Bb8 {[%clk 0:00:11]} 56. Kh6
{[%clk 0:00:03.3]} 56... Ba7 {[%clk 0:00:11.5]} 57. Be4 {[%clk 0:00:03.6]} 57...
Bb8 {[%clk 0:00:12]} 58. Kh5 {[%clk 0:00:03.7]} 58... Ba7 {[%clk 0:00:12.9]} 59.
Kg4 {[%clk 0:00:04.2]} 59... Bb8 {[%clk 0:00:13.6]} 60. Kf5 {[%clk 0:00:05.1]}
60... Ba7 {[%clk 0:00:14.5]} 61. Ke6 {[%clk 0:00:05.8]} 61... Bg1 {[%clk
0:00:15.4]} 62. Kd7 {[%clk 0:00:06.7]} 62... Bf2 {[%clk 0:00:16]} 63. Kc7 {[%clk
0:00:07.2]} 63... Bg3+ {[%clk 0:00:15.5]} 64. Kb7 {[%clk 0:00:07.1]} 64... Bf2
{[%clk 0:00:16]} 65. Kc6 {[%clk 0:00:06.4]} 65... Ba7 {[%clk 0:00:15.5]} 66. Kb7
{[%clk 0:00:06]} 66... Bg1 {[%clk 0:00:15.7]} 67. Kc6 {[%clk 0:00:05.9]} 67...
Bf2 {[%clk 0:00:15.1]} 68. Kb7 {[%clk 0:00:05.5]} 68... Bg1 {[%clk 0:00:15]} 69.
a7 {[%clk 0:00:05.3]} 69... Bxa7 {[%clk 0:00:14.2]} 70. Kxa7 {[%clk 0:00:05.4]}
70... Kg7 {[%clk 0:00:15.1]} 71. Kb7 {[%clk 0:00:05.4]} 71... Kh8 {[%clk
0:00:16]} 72. Kc6 {[%clk 0:00:06.3]} 72... Kg7 {[%clk 0:00:16.9]} 73. Kd7 {[%clk
0:00:07.2]} 73... Kh8 {[%clk 0:00:17.8]} 74. Ke6 {[%clk 0:00:07.9]} 74... Kg7
{[%clk 0:00:18.7]} 75. Kf5 {[%clk 0:00:07.6]} 75... Kh8 {[%clk 0:00:19.6]} 76.
Kg5 {[%clk 0:00:08]} 76... Kg7 {[%clk 0:00:19.8]} 77. Kh5 {[%clk 0:00:08.4]}
77... Kh8 {[%clk 0:00:19.9]} 78. Bg6 {[%clk 0:00:07.4]} 78... Kg7 {[%clk
0:00:20]} 79. Kg5 {[%clk 0:00:07]} 79... Kh8 {[%clk 0:00:20.9]} 80. Bf7 {[%clk
0:00:07.2]} 80... Kxh7 {[%clk 0:00:19.5]} 1/2-1/2

[Event "Late-Titled-Tuesday-Blitz-September-26-2023"]
[Site "Chess.com"]
[Date "2023.09.26"]
[Round "4"]
[White "Angry_Twin"]
[Black "rychessmaster1"]
[Result "1-0"]
[WhiteElo "2950"]
[BlackElo "2724"]
[TimeControl "180+1"]
[EndTime "14:39:56 PDT"]
[Termination "Angry_Twin won on time"]

1. e4 {[%clk 0:03:00.9]} 1... e5 {[%clk 0:02:59.5]} 2. Nf3 {[%clk 0:03:01.4]}
2... Nc6 {[%clk 0:02:59.3]} 3. Bc4 {[%clk 0:03:02.1]} 3... Bc5 {[%clk
0:02:59.3]} 4. O-O {[%clk 0:03:01.3]} 4... Nf6 {[%clk 0:02:58.2]} 5. d3 {[%clk
0:03:01.8]} 5... d6 {[%clk 0:02:51.6]} 6. c3 {[%clk 0:03:01.9]} 6... a6 {[%clk
0:02:50.7]} 7. a4 {[%clk 0:03:02.3]} 7... h6 {[%clk 0:02:50.5]} 8. Nbd2 {[%clk
0:03:02.1]} 8... Ba7 {[%clk 0:02:50.5]} 9. Re1 {[%clk 0:02:56.3]} 9... O-O
{[%clk 0:02:49.5]} 10. h3 {[%clk 0:02:55.9]} 10... Re8 {[%clk 0:02:47.1]} 11. b4
{[%clk 0:02:55.9]} 11... Be6 {[%clk 0:02:46.3]} 12. Bxe6 {[%clk 0:02:52.4]}
12... Rxe6 {[%clk 0:02:47.2]} 13. Qc2 {[%clk 0:02:52.2]} 13... d5 {[%clk
0:02:29.9]} 14. b5 {[%clk 0:02:39.9]} 14... dxe4 {[%clk 0:01:41.7]} 15. bxc6
{[%clk 0:02:36]} 15... exf3 {[%clk 0:01:42.2]} 16. cxb7 {[%clk 0:02:36.2]} 16...
Rb8 {[%clk 0:01:42.9]} 17. Nxf3 {[%clk 0:02:36.8]} 17... Qd5 {[%clk 0:01:42.9]}
18. Rb1 {[%clk 0:02:09.9]} 18... e4 {[%clk 0:01:22]} 19. dxe4 {[%clk 0:02:10.8]}
19... Rxe4 {[%clk 0:01:22.3]} 20. Rd1 {[%clk 0:02:00]} 20... Qc6 {[%clk
0:01:10.4]} 21. Qb3 {[%clk 0:01:40.3]} 21... Qxa4 {[%clk 0:01:01.1]} 22. Qxa4
{[%clk 0:01:25.9]} 22... Rxa4 {[%clk 0:01:02]} 23. Ne5 {[%clk 0:00:56.2]} 23...
Bb6 {[%clk 0:00:49.2]} 24. c4 {[%clk 0:00:56.2]} 24... Ne4 {[%clk 0:00:38.4]}
25. Be3 {[%clk 0:00:56.1]} 25... Nc3 {[%clk 0:00:25.5]} 26. Bxb6 {[%clk
0:00:54.1]} 26... cxb6 {[%clk 0:00:25.5]} 27. Ra1 {[%clk 0:00:29.3]} 27... Rxa1
{[%clk 0:00:18.4]} 28. Rxa1 {[%clk 0:00:29.2]} 28... Rxb7 {[%clk 0:00:19.1]} 29.
Rxa6 {[%clk 0:00:29.4]} 29... f6 {[%clk 0:00:19.6]} 30. Nc6 {[%clk 0:00:27]}
30... Ne4 {[%clk 0:00:16.1]} 31. Nd8 {[%clk 0:00:24.8]} 31... Rb8 {[%clk
0:00:15.6]} 32. Nc6 {[%clk 0:00:24.4]} 32... Rb7 {[%clk 0:00:15.8]} 33. Nb4
{[%clk 0:00:21.8]} 33... Nd2 {[%clk 0:00:13.6]} 34. Ra8+ {[%clk 0:00:19.7]}
34... Kh7 {[%clk 0:00:13.7]} 35. Rc8 {[%clk 0:00:20.3]} 35... Rd7 {[%clk
0:00:12]} 36. Nd5 {[%clk 0:00:14.2]} 36... b5 {[%clk 0:00:12.4]} 37. Nb6 {[%clk
0:00:13.9]} 37... Rb7 {[%clk 0:00:11]} 38. c5 {[%clk 0:00:14.3]} 38... b4 {[%clk
0:00:11.6]} 39. Rd8 {[%clk 0:00:09.3]} 39... Ne4 {[%clk 0:00:12]} 40. c6 {[%clk
0:00:08.6]} 40... Rc7 {[%clk 0:00:12.6]} 41. Nd7 {[%clk 0:00:06.2]} 41... Rxc6
{[%clk 0:00:08.3]} 42. Nf8+ {[%clk 0:00:06.6]} 42... Kg8 {[%clk 0:00:09]} 43.
Rb8 {[%clk 0:00:06]} 43... Kf7 {[%clk 0:00:08.4]} 44. Nd7 {[%clk 0:00:06]} 44...
Rc1+ {[%clk 0:00:08.8]} 45. Kh2 {[%clk 0:00:05.9]} 45... Nxf2 {[%clk 0:00:09.5]}
46. Rxb4 {[%clk 0:00:06.2]} 46... Nd3 {[%clk 0:00:10.1]} 47. Rb7 {[%clk
0:00:05.3]} 47... Ke6 {[%clk 0:00:10.6]} 48. Nf8+ {[%clk 0:00:05.6]} 48... Kf5
{[%clk 0:00:11]} 49. Rxg7 {[%clk 0:00:06.1]} 49... Nf4 {[%clk 0:00:11.2]} 50.
g4+ {[%clk 0:00:05.6]} 50... Ke4 {[%clk 0:00:11.2]} 51. Ng6 {[%clk 0:00:04.6]}
51... Rc2+ {[%clk 0:00:09.1]} 52. Kg1 {[%clk 0:00:03]} 52... Nxh3+ {[%clk
0:00:08.7]} 53. Kf1 {[%clk 0:00:03.6]} 53... Ke3 {[%clk 0:00:07.1]} 54. Nh4
{[%clk 0:00:02.7]} 54... Nf4 {[%clk 0:00:05.8]} 55. Nf5+ {[%clk 0:00:03.1]}
55... Kf3 {[%clk 0:00:05.9]} 56. Nd4+ {[%clk 0:00:03.6]} 56... Kg3 {[%clk
0:00:06.3]} 57. Nxc2 {[%clk 0:00:04.5]} 57... Nd5 {[%clk 0:00:04.8]} 58. Nd4
{[%clk 0:00:04.3]} 58... Kf4 {[%clk 0:00:04.8]} 59. Ne6+ {[%clk 0:00:04.1]}
59... Ke5 {[%clk 0:00:05.1]} 60. Nf8 {[%clk 0:00:04.6]} 60... Ne3+ {[%clk
0:00:05.5]} 61. Kf2 {[%clk 0:00:04.7]} 61... Nd1+ {[%clk 0:00:06.2]} 62. Kf3
{[%clk 0:00:04.9]} 62... Nc3 {[%clk 0:00:06.7]} 63. Ng6+ {[%clk 0:00:05.1]}
63... Ke6 {[%clk 0:00:06.8]} 64. Re7+ {[%clk 0:00:05.8]} 64... Kd6 {[%clk
0:00:07.4]} 65. Re3 {[%clk 0:00:05.7]} 65... Nb5 {[%clk 0:00:07.3]} 66. Nf4
{[%clk 0:00:05.3]} 66... Nd4+ {[%clk 0:00:06.9]} 67. Ke4 {[%clk 0:00:05.8]}
67... Nc6 {[%clk 0:00:06.2]} 68. Rd3+ {[%clk 0:00:06.3]} 68... Ke7 {[%clk
0:00:06.3]} 69. Kf5 {[%clk 0:00:06.5]} 69... Kf7 {[%clk 0:00:05.6]} 70. Rd7+
{[%clk 0:00:06.3]} 70... Ne7+ {[%clk 0:00:06.3]} 71. Ke4 {[%clk 0:00:06.5]}
71... Ke8 {[%clk 0:00:04.9]} 72. Ra7 {[%clk 0:00:07.2]} 72... Kf8 {[%clk
0:00:03.5]} 73. Nd5 {[%clk 0:00:06.3]} 73... Ng6 {[%clk 0:00:03]} 74. Nxf6
{[%clk 0:00:06.2]} 74... Ne7 {[%clk 0:00:02.2]} 75. Nh7+ {[%clk 0:00:06.3]}
75... Ke8 {[%clk 0:00:02.5]} 76. g5 {[%clk 0:00:06.6]} 76... hxg5 {[%clk
0:00:02.6]} 77. Nxg5 {[%clk 0:00:07.5]} 77... Nc6 {[%clk 0:00:03]} 78. Rc7
{[%clk 0:00:07.5]} 78... Nd8 {[%clk 0:00:03.3]} 79. Ke5 {[%clk 0:00:06.9]} 79...
Kf8 {[%clk 0:00:03.4]} 80. Kf6 {[%clk 0:00:07.4]} 80... Ke8 {[%clk 0:00:02.8]}
81. Rh7 {[%clk 0:00:08.1]} 81... Nc6 {[%clk 0:00:02.6]} 82. Ne6 {[%clk
0:00:08.6]} 1-0